bitfinex/quotes_ETHUSD_20240810
["timestamp","ask_amount","ask_price","bid_price","bid_amount"]
[1723254812769,3.84219,2602.7,2602.2,2.48369]
[1723254812977,3.84188,2602.9,2602.2,2.48369]
[1723254812978,3.84188,2602.9,2602.4,0.043882]
[1723254813157,3.84203,2602.8,2602.3,0.632665]
[1723254813359,3.84231,2602.6,2602.5,0.043882]
[1723254813690,3.84231,2602.6,2602.2,2.2579]
[1723254813851,3.84231,2602.6,2602.3,0.04363674]
[1723254814184,3.84231,2602.6,2602.2,2.2579]
[1723254814344,3.84231,2602.6,2602.4,0.04377299]
[1723254814545,3.84245,2602.5,2602.2,2.2579]
[1723254814848,3.84227,2602.7,2602.2,2.2579]
[1723254814849,3.84225,2602.7,2602.2,2.2579]
[1723254815170,3.84225,2602.7,2602.3,0.04398192]
[1723254815374,7.6845,2602.7,2602.3,0.04398192]
[1723254815560,7.6845,2602.7,2602.2,2.48369]
[1723254815759,7.6845,2602.7,2602.4,0.04398192]
[1723254815976,7.6845,2602.7,2602.2,2.2579]
[1723254816178,3.84231,2602.6,2602.5,0.04398192]
[1723254816388,3.84247,2602.5,2602.2,2.2579]
[1723254816752,3.84247,2602.5,2602.3,0.04398192]
[1723254817058,3.84247,2602.5,2602.2,2.2579]
[1723254817404,8.453412,2602.5,2602.4,0.04397284]
[1723254817581,3.84294,2602.2,2601.9,9.9896]
[1723254817790,3.84294,2602.2,2601.5,6.84386]
[1723254817791,3.84305,2602.1,2601.6,2.4996]
[1723254818095,3.168172,2602.5,2601.6,2.4996]
[1723254818096,7.68664,2602.0,2601.6,2.4996]
[1723254818251,3.84331,2602.0,2601.6,2.4996]
[1723254819692,3.84327,2602.0,2601.6,2.4996]
[1723254820565,3.84393,2601.5,2601.4,0.1245081]
[1723254820898,0.768782,2601.5,2601.4,0.1245081]
[1723254821081,3.84388,2601.6,2601.4,0.1245081]
[1723254821316,3.84393,2601.5,2601.4,0.1245081]
[1723254821795,3.84357,2601.8,2601.4,0.1245081]
[1723254823091,7.68718,2601.8,2601.4,0.1245081]
[1723254823502,3.84369,2601.7,2601.4,0.1245081]
[1723254824262,2.4371,2602.2,2601.4,0.1245081]
[1723254824263,3.84331,2602.0,2601.4,0.1245081]
[1723254824564,6.28008,2602.2,2601.5,3.84392]
[1723254824565,4.47097,2602.2,2601.5,3.84392]
[1723254824790,3.84298,2602.2,2601.6,2.3411]
[1723254824985,7.68602,2602.2,2601.6,2.3411]
[1723254825607,3.84298,2602.2,2601.6,6.18487]
[1723254825878,3.84298,2602.2,2601.7,3.84363]
[1723254826108,3.84276,2602.3,2601.7,3.84363]
[1723254826323,2.4371,2602.5,2601.6,2.3411]
[1723254826324,3.84317,2602.1,2601.6,2.3411]
[1723254826492,3.84292,2602.2,2601.6,2.3411]
[1723254826493,7.68591,2602.2,2601.6,2.3411]
[1723254826696,7.68591,2602.2,2601.6,2.97204081]
[1723254827001,3.84264,2602.4,2601.7,0.04330639]
[1723254827202,3.84264,2602.4,2601.7,7.73033639]
[1723254827584,7.68535,2602.4,2601.7,3.88681639]
[1723254827780,7.68535,2602.4,2601.8,0.62279164]
[1723254827979,3.84264,2602.4,2601.8,0.62279164]
[1723254828413,7.68534,2602.4,2601.9,0.04330639]
[1723254828803,3.84278,2602.3,2601.9,0.04330639]
[1723254829116,3.84293,2602.2,2601.9,0.04330639]
[1723254829423,3.84318,2602.1,2601.6,2.3411]
[1723254829593,3.84318,2602.1,2602.0,0.0430883]
[1723254829783,3.84318,2602.1,2601.6,2.3411]
[1723254830130,3.84318,2602.1,2601.7,0.618494]
[1723254830419,3.84324,2602.0,2601.7,0.04330639]
[1723254830584,3.84308,2602.1,2601.7,0.04330639]
[1723254830795,3.84308,2602.1,2601.5,3.84393]
[1723254831078,3.8432,2602.0,2601.5,3.84393]
[1723254831324,3.84336,2601.9,2601.6,0.04330639]
[1723254831495,3.84299,2602.2,2601.7,2.3411]
[1723254831816,7.68542,2602.4,2601.7,6.18464]
[1723254832026,3.84268,2602.4,2601.7,10.07152365]
[1723254832184,3.84268,2602.4,2601.8,3.84348]
[1723254832529,3.84268,2602.4,2601.9,0.04331548]
[1723254834388,7.6854,2602.4,2601.8,3.84344]
[1723254834591,7.68537,2602.4,2602.0,0.04331548]
[1723254835027,7.68537,2602.4,2601.7,7.19179237]
[1723254835205,7.68537,2602.4,2602.1,0.04296111]
[1723254835519,7.68537,2602.4,2602.2,0.04296111]
[1723254835727,7.68537,2602.4,2601.8,0.71917924]
[1723254835910,3.84268,2602.4,2602.3,0.04296111]
[1723254836100,3.84268,2602.4,2601.8,4.56265924]
[1723254836300,3.84268,2602.4,2602.3,0.04296111]
[1723254836528,3.84299,2602.2,2601.7,2.3411]
[1723254837243,2.4196,2602.3,2601.4,0.1245081]
[1723254837449,3.84342,2601.9,2601.4,3.1245081]
[1723254839426,3.84342,2601.9,2601.4,6.9685781]
[1723254840023,3.84279,2602.3,2601.6,6.2425]
[1723254840262,3.84279,2602.3,2601.7,3.84356]
[1723254840458,3.8429,2602.2,2601.6,10.0862]
[1723254840755,7.68566,2602.3,2601.7,1.07830578]
[1723254840964,3.84279,2602.3,2601.7,4.92186578]
[1723254841334,2.4196,2602.6,2601.7,1.07830578]
[1723254841524,3.977,2603.2,2602.4,3.84257]
[1723254841525,3.8418,2603.0,2602.4,3.84257]
[1723254841724,3.84149,2603.2,2602.5,6.25292]
[1723254841725,7.68306,2603.2,2602.5,6.25292]
[1723254841923,7.68306,2603.2,2602.5,7.30391383]
[1723254841924,3.84149,2603.2,2602.5,7.30391383]
[1723254842155,7.683,2603.2,2602.5,7.30391383]
[1723254842538,3.84158,2603.1,2602.5,7.30391383]
[1723254842862,3.84149,2603.2,2602.5,7.30391383]
[1723254844200,2.439,2603.3,2602.5,0.04144483]
[1723254844201,3.84183,2603.0,2602.5,0.04144483]
[1723254844346,7.68445,2602.7,2602.5,0.04144483]
[1723254844547,7.68445,2602.7,2602.2,2.4105]
[1723254844755,3.84216,2602.7,2602.6,0.04066366]
[1723254844994,3.84216,2602.7,2602.2,2.4105]
[1723254845157,3.84216,2602.7,2602.6,0.04066366]
[1723254845358,3.84216,2602.7,2602.2,2.4105]
[1723254845553,8.69677,2602.7,2602.6,0.04084528]
[1723254845755,3.84246,2602.5,2601.9,6.25384]
[1723254845986,4.85447,2602.7,2601.9,3.420227]
[1723254846157,3.84188,2602.9,2602.3,2.4105]
[1723254846362,3.84205,2602.8,2602.3,2.4105]
[1723254846750,7.68384,2602.9,2602.3,2.4105]
[1723254846971,3.84207,2602.8,2602.3,2.4105]
[1723254847171,4.59434241,2602.9,2602.3,2.4105]
[1723254847172,4.59435241,2602.9,2602.3,2.4105]
[1723254847486,3.84225,2602.7,2602.3,2.4105]
[1723254847711,3.84241,2602.6,2601.9,2.4105]
[1723254848056,2.439,2602.8,2601.6,3.0]
[1723254848057,3.84269,2602.4,2601.7,3.84356]
[1723254848252,3.84269,2602.4,2601.8,3.0]
[1723254849075,3.84246,2602.5,2601.9,3.84331]
[1723254849299,3.84238,2602.6,2602.0,3.84317]
[1723254849611,3.84238,2602.6,2601.9,1.068686]
[1723254849612,3.84255,2602.5,2601.9,1.068686]
[1723254849784,3.84277,2602.3,2601.8,3.0]
[1723254849996,3.84299,2602.2,2601.6,6.2542]
[1723254850325,3.8432,2602.0,2601.6,2.4105]
[1723254850618,3.8432,2602.0,2601.4,3.9684981]
[1723254851188,4.0867,2602.3,2601.4,0.1245081]
[1723254851399,0.65257,2602.2,2601.4,0.1245081]
[1723254851616,3.84366,2601.7,2601.4,0.1245081]
[1723254851813,3.84346,2601.9,2601.4,0.1245081]
[1723254852130,3.84351,2601.8,2601.4,0.1245081]
[1723254852331,2.439,2602.0,2601.4,0.1245081]
[1723254852332,3.84375,2601.7,2601.4,0.1245081]
[1723254852629,7.68748,2601.7,2601.4,0.1245081]
[1723254852824,7.68746,2601.7,2601.4,0.1245081]
[1723254853009,3.84378,2601.6,2601.4,0.1245081]
[1723254853216,7.68786,2601.5,2601.4,0.1245081]
[1723254853514,10.895646,2601.5,2601.4,0.1245081]
[1723254853685,14.739576,2601.5,2601.4,0.1245081]
[1723254856328,7.68786,2601.5,2601.4,0.1245081]
[1723254856689,3.84393,2601.5,2601.4,0.1245081]
[1723254856890,3.84393,2601.5,2601.4,0.16447985]
[1723254857229,3.84393,2601.5,2601.4,0.1245081]
[1723254857908,3.84393,2601.5,2601.4,0.16447985]
[1723254858101,3.84393,2601.5,2601.4,0.1245081]
[1723254858525,3.84393,2601.5,2601.4,0.16447985]
[1723254861331,3.84379,2601.6,2601.4,0.16447985]
[1723254861737,3.84379,2601.6,2601.4,0.42830784]
[1723254861934,3.84356,2601.8,2601.4,0.42830784]
[1723254862725,3.84393,2601.5,2601.4,0.16447985]
[1723254862943,11.53179,2601.5,2601.4,0.16447985]
[1723254863145,7.68786,2601.5,2601.4,0.1245081]
[1723254863446,12.684945,2601.5,2601.4,0.1245081]
[1723254863814,18.931175,2601.5,2601.4,0.1245081]
[1723254864229,18.931175,2601.5,2601.4,8.1e-06]
[1723254864707,22.481175,2601.5,2601.4,8.1e-06]
[1723254864928,3.84571,2600.3,2600.2,2.3785]
[1723254865108,3.84571,2600.3,2599.8,7.49]
[1723254865109,3.84571,2600.3,2599.9,2.3785]
[1723254865315,3.84508,2600.8,2599.6,2.3785]
[1723254865626,3.8461,2600.1,2599.6,2.67659042]
[1723254865938,3.84514,2600.7,2600.0,6.22456]
[1723254866140,3.84514,2600.7,2600.1,0.622456]
[1723254866549,3.84514,2600.7,2600.2,0.0769077]
[1723254866750,3.84489,2600.9,2600.2,3.9227577]
[1723254866965,3.84485,2600.9,2600.3,2.90992611]
[1723254867183,6.24657,2601.3,2600.3,2.83302137]
[1723254867586,2.4023,2601.3,2600.3,2.83302137]
[1723254867743,3.8399435,2601.3,2600.4,4.51340714]
[1723254867944,7.6842835,2601.3,2600.4,0.66787714]
[1723254868147,7.6842835,2601.3,2600.3,2.3785]
[1723254868378,6.24664,2601.3,2600.3,2.3785]
[1723254868682,10.091,2601.3,2600.3,2.3785]
[1723254868978,6.24664,2601.3,2600.3,2.3785]
[1723254869285,2.4023,2601.3,2600.5,3.84541]
[1723254869494,0.62465,2601.2,2600.5,3.84541]
[1723254869642,6.24654,2601.3,2600.5,3.84541]
[1723254870187,2.4023,2601.3,2600.5,3.84531]
[1723254870359,2.4023,2601.3,2600.7,3.84511]
[1723254870945,2.4023,2601.1,2600.3,3.84569]
[1723254871244,2.4023,2601.5,2600.4,2.3785]
[1723254871442,2.4023,2601.5,2600.8,3.84486]
[1723254872162,2.4023,2601.5,2600.9,0.03656577]
[1723254872363,1.009004,2601.4,2600.9,0.03656577]
[1723254872887,0.85152206,2601.7,2601.1,3.84439]
[1723254873186,2.4023,2601.8,2601.3,3.84421]
[1723254873681,2.4023,2601.8,2601.1,3.84439]
[1723254873682,6.24581,2601.8,2601.4,0.03656577]
[1723254874059,6.24581,2601.8,2601.2,3.84429]
[1723254874259,6.24581,2601.8,2601.5,0.03656577]
[1723254874500,0.624581,2601.7,2601.2,3.84429]
[1723254874702,0.624581,2601.7,2601.6,0.03656577]
[1723254875105,0.624581,2601.7,2601.2,3.84429]
[1723254875287,0.624581,2601.7,2601.6,0.03656577]
[1723254875667,0.624581,2601.7,2601.2,3.84429]
[1723254875880,0.624581,2601.7,2601.6,0.03656577]
[1723254876086,0.624581,2601.7,2601.2,3.84429]
[1723254876289,0.624581,2601.7,2601.3,0.03656577]
[1723254876475,0.6870391,2601.6,2600.9,3.8447]
[1723254876664,3.84387,2601.6,2601.3,0.03656577]
[1723254876865,3.84387,2601.6,2601.0,3.84463]
[1723254877180,2.4023,2601.8,2601.3,3.84419]
[1723254877373,6.24582,2601.8,2601.3,3.84419]
[1723254877783,6.24582,2601.8,2601.4,0.0362836]
[1723254878425,2.4023,2601.8,2601.4,3.8803536]
[1723254878620,3.411209,2601.8,2601.2,3.84431]
[1723254878781,3.411209,2601.8,2601.5,0.03631088]
[1723254879119,7.254739,2601.8,2601.2,3.84429]
[1723254879315,6.24583,2601.8,2601.2,3.84429]
[1723254879626,2.4023,2601.8,2601.3,3.84411]
[1723254879918,2.4023,2601.8,2601.3,0.03631088]
[1723254880122,6.870358,2601.8,2601.2,7.68856]
[1723254880334,6.870358,2601.8,2601.4,0.03631088]
[1723254880504,0.624558,2601.8,2601.4,3.88031088]
[1723254880704,0.624558,2601.8,2601.4,3.844]
[1723254881021,6.24558,2602.0,2601.5,3.88023088]
[1723254881408,6.24558,2602.0,2601.5,0.03631088]
[1723254882476,3.84344,2601.9,2601.3,3.84419]
[1723254882679,4.467998,2601.9,2601.4,3.84406]
[1723254882880,4.467998,2601.9,2601.4,3.8802436]
[1723254883111,0.624558,2601.9,2601.6,3.84374]
[1723254883322,9.94856,2602.3,2601.7,3.84363]
[1723254883539,2.2629,2602.2,2601.4,0.0361836]
[1723254883715,2.2629,2602.2,2601.1,3.84443]
[1723254883716,2.2629,2601.7,2601.1,3.84443]
[1723254884035,6.10658,2601.7,2601.5,0.0361836]
[1723254884234,6.10658,2601.7,2601.1,3.84443]
[1723254884235,0.610658,2601.6,2601.1,3.84443]
[1723254884596,0.610658,2601.6,2601.1,7.68886]
[1723254884796,0.610658,2601.6,2601.1,7.68887]
[1723254884998,6.10658,2601.7,2601.2,3.84433]
[1723254885840,2.2629,2601.7,2601.3,3.84419]
[1723254886648,2.2629,2601.7,2601.1,3.84443]
[1723254886820,2.2629,2601.7,2600.9,6.23294]
[1723254886821,0.22629,2601.6,2601.4,0.0361836]
[1723254887010,0.22629,2601.6,2600.9,2.3882]
[1723254887209,3.84358,2601.8,2601.5,0.03611996]
[1723254887425,2.2629,2602.0,2601.6,3.84375]
[1723254887632,2.2629,2602.0,2601.6,0.03604724]
[1723254887829,4.092409,2601.9,2601.6,0.03604724]
[1723254888146,4.092409,2601.9,2601.4,3.84406]
[1723254888330,4.092409,2601.9,2601.7,0.03604724]
[1723254888739,4.092409,2601.9,2601.4,3.84406]
[1723254888941,4.092409,2601.9,2601.8,0.03604724]
[1723254889240,4.092259,2601.9,2601.2,3.84426]
[1723254889449,3.84349,2601.8,2601.2,3.84426]
[1723254889609,4.49263536,2601.8,2601.3,0.03601087]
[1723254890122,4.49263536,2601.8,2601.2,7.68854]
[1723254890421,4.49263536,2601.8,2601.4,0.03601087]
[1723254890623,8.33621536,2601.8,2601.2,3.84426]
[1723254890820,3.84386,2601.6,2601.5,0.03601087]
[1723254891007,3.84386,2601.6,2601.0,3.84458]
[1723254891211,0.85851344,2601.7,2601.5,0.03601087]
[1723254891409,3.84355,2601.8,2601.0,3.84458]
[1723254891633,3.84355,2601.8,2601.6,0.03601087]
[1723254891959,3.84355,2601.8,2601.2,3.84434]
[1723254891960,3.84372,2601.7,2601.2,3.84434]
[1723254892312,3.84379,2601.6,2601.0,3.84458]
[1723254892613,4.612524,2601.6,2601.1,3.84451]
[1723254893532,3.84355,2601.8,2601.2,3.84434]
[1723254895151,0.248919,2601.9,2601.2,3.84434]
[1723254895152,3.84364,2601.7,2601.2,3.84434]
[1723254895712,3.84364,2601.7,2601.0,3.84458]
[1723254895917,3.8438,2601.6,2601.0,3.84457]
[1723254896162,3.8438,2601.6,2601.0,7.68914]
[1723254896371,3.8438,2601.6,2601.0,3.84457]
[1723254896672,3.8438,2601.6,2601.0,7.68915]
[1723254897658,4.2528959,2601.7,2601.1,3.84439]
[1723254898677,2.2629,2602.0,2601.6,3.8437]
[1723254898972,3.84306,2602.1,2601.6,3.8437]
[1723254899119,2.3125,2602.0,2601.5,3.84385]
[1723254899549,6.15572,2602.0,2601.4,3.84394]
[1723254900629,2.3125,2602.0,2601.4,3.84394]
[1723254900846,2.3125,2602.0,2601.5,3.84384]
[1723254901046,2.3125,2602.0,2601.4,3.84394]
[1723254901861,2.3125,2602.0,2601.5,0.0359927]
[1723254902461,6.29908,2601.6,2601.5,0.0359927]
[1723254902828,6.29908,2601.6,2601.0,3.84458]
[1723254903132,2.4553,2601.6,2601.1,0.03478386]
[1723254903440,2.4553,2601.6,2601.2,3.84434]
[1723254903642,6.29882,2601.8,2601.2,7.68858]
[1723254903857,0.768689,2601.7,2601.3,0.03499295]
[1723254904265,0.768689,2601.7,2601.2,3.84429]
[1723254904575,0.768689,2601.7,2601.2,3.84428]
[1723254904576,4.612329,2601.7,2601.2,3.84428]
[1723254904930,4.612329,2601.7,2601.3,0.03499295]
[1723254905167,0.7067629,2601.6,2601.3,0.03499295]
[1723254905542,0.7067629,2601.6,2601.2,3.84428]
[1723254906074,0.7067629,2601.6,2601.3,0.03499295]
[1723254906376,2.4553,2602.1,2601.3,0.03499295]
[1723254906544,2.4553,2602.1,2601.1,6.13193]
[1723254906880,2.4553,2602.1,2601.3,3.8441]
[1723254906881,3.84335,2601.9,2601.3,3.8441]
[1723254907030,4.08875,2602.0,2601.4,3.84403]
[1723254907231,4.08875,2602.0,2601.4,3.87783833]
[1723254907472,1.038714,2601.9,2601.5,3.84393]
[1723254907931,1.038714,2601.9,2601.6,0.03370833]
[1723254908136,2.4553,2602.1,2601.6,0.03370833]
[1723254908377,3.84261,2602.4,2601.8,3.84345]
[1723254908879,3.84261,2602.4,2601.9,0.03370833]
[1723254909043,4.611287,2602.3,2601.9,0.03370833]
[1723254909250,3.84305,2602.1,2601.9,0.03370833]
[1723254909449,3.84305,2602.1,2601.5,6.13134]
[1723254909646,7.68621,2602.1,2601.5,3.84384]
[1723254910379,0.768621,2602.0,2601.5,7.68769]
[1723254910552,3.84305,2602.1,2601.5,3.84384]
[1723254911436,3.84305,2602.1,2601.6,3.84371]
[1723254912279,3.84305,2602.1,2601.3,6.13163]
[1723254912578,3.84322,2602.0,2601.5,3.8439]
[1723254912879,4.611847,2602.0,2601.5,3.8439]
[1723254913538,0.768627,2602.0,2601.5,3.8439]
[1723254913836,3.84305,2602.1,2601.5,3.8439]
[1723254914034,3.8435,2601.8,2601.3,6.13163]
[1723254914279,3.84326,2602.0,2601.4,3.84406]
[1723254914484,0.384326,2601.9,2601.5,3.84392]
[1723254915142,0.384326,2601.9,2601.5,3.84386]
[1723254915347,3.84313,2602.1,2601.5,3.84386]
[1723254915553,3.843,2602.2,2601.5,3.84386]
[1723254915776,2.4553,2602.3,2601.8,3.84341]
[1723254915941,2.4553,2602.3,2601.5,2.2875]
[1723254916150,6.92785,2602.3,2601.8,3.84338]
[1723254916662,3.84291,2602.2,2601.6,3.84367]
[1723254917582,6.92786,2602.3,2601.6,3.84367]
[1723254918999,6.92786,2602.3,2601.7,3.8436]
[1723254919144,1.077056,2602.2,2601.7,3.8436]
[1723254919845,1.077056,2602.2,2601.8,3.84345]
[1723254920992,3.84354,2601.8,2600.6,3.84513]
[1723254921193,3.84401,2601.5,2600.8,3.84496]
[1723254921483,6.22813,2602.1,2601.0,2.4486]
[1723254922150,3.84366,2601.7,2601.1,3.84444]
[1723254922867,3.84388,2601.6,2601.0,2.4486]
[1723254923283,3.84388,2601.6,2601.0,6.29322]
[1723254923461,2.4003,2601.7,2601.0,6.29319]
[1723254923657,6.24404,2601.7,2601.1,3.84443]
[1723254923891,6.868426,2601.7,2601.1,3.84443]
[1723254924241,3.84305,2602.1,2601.5,3.84387]
[1723254925264,3.8432,2602.0,2601.5,3.84387]
[1723254928120,3.84292,2602.2,2601.5,3.84387]
[1723254928321,0.6298,2602.3,2601.7,3.84355]
[1723254928485,7.6848,2602.6,2601.8,2.415]
[1723254928682,7.68421,2602.8,2602.1,3.84292]
[1723254928941,1.008451,2602.8,2601.8,2.415]
[1723254929224,2.4003,2602.9,2602.1,3.84304]
[1723254929225,6.24253,2602.7,2602.1,3.84304]
[1723254929446,2.4003,2602.7,2602.2,3.84281]
[1723254929598,3.84164,2603.1,2601.8,2.415]
[1723254929599,2.4003,2603.0,2601.8,2.415]
[1723254929932,3.84188,2602.9,2602.4,2.415]
[1723254930141,2.4003,2603.0,2602.4,6.25759]
[1723254930428,6.24202,2603.0,2602.4,6.25759]
[1723254930634,6.83349244,2603.0,2602.4,6.25759]
[1723254930923,2.99177244,2603.0,2602.4,10.10009]
[1723254931101,2.4003,2603.0,2602.5,3.84242]
[1723254931310,6.24165,2603.3,2602.4,2.415]
[1723254931505,3.84135,2603.3,2602.8,3.84198]
[1723254931704,7.68215,2603.5,2602.8,3.84193]
[1723254931924,4.465275,2603.4,2602.8,3.84193]
[1723254932306,2.4003,2603.6,2602.9,2.415]
[1723254932533,3.84047,2603.9,2603.4,3.84103]
[1723254932534,2.4003,2603.9,2603.4,3.84103]
[1723254932838,3.83959,2604.5,2603.8,3.84052]
[1723254933034,0.60179976,2604.8,2603.9,3.84027]
[1723254933035,2.4003,2604.7,2603.9,3.84027]
[1723254933326,3.83859,2605.2,2604.6,3.83926]
[1723254933550,6.23855,2605.4,2604.6,3.83925]
[1723254933689,0.623855,2605.3,2604.8,3.83894]
[1723254933895,0.623855,2605.3,2604.7,3.83907]
[1723254934096,6.23853,2605.4,2604.7,3.83907]
[1723254934449,2.4003,2605.4,2604.0,3.84013]
[1723254934621,3.83926,2604.7,2604.0,3.84013]
[1723254934798,0.383926,2604.6,2604.0,3.84013]
[1723254934997,0.383926,2604.6,2604.1,3.83996]
[1723254935337,0.383926,2604.6,2603.8,3.84053]
[1723254935338,3.8396,2604.5,2603.8,3.84053]
[1723254935688,3.8396,2604.5,2603.6,3.84072]
[1723254935951,2.4003,2604.8,2603.5,6.25589]
[1723254935952,3.83992,2604.3,2603.5,6.25589]
[1723254936242,0.383992,2604.2,2603.7,3.84057]
[1723254936411,3.83927,2604.7,2603.5,2.415]
[1723254936607,3.83927,2604.7,2604.1,3.83999]
[1723254937952,3.83947,2604.6,2603.9,3.84035]
[1723254938105,3.83952,2604.5,2603.7,3.84062]
[1723254938305,3.83966,2604.4,2603.7,3.84062]
[1723254938535,0.623957,2604.6,2603.9,3.84038]
[1723254938841,4.2859237,2604.5,2603.9,3.84038]
[1723254940039,4.2859237,2604.5,2604.0,3.84023]
[1723254940348,4.2859237,2604.5,2603.9,3.84034]
[1723254941556,3.8398,2604.3,2603.6,11.33071]
[1723254941718,7.67972,2604.3,2603.6,13.089372]
[1723254941942,3.83995,2604.2,2603.6,9.248662]
[1723254942460,3.8398,2604.3,2603.6,13.089462]
[1723254942666,0.81256937,2604.3,2603.5,2.415]
[1723254942875,0.81256937,2604.3,2603.3,26.64116]
[1723254942876,3.84018,2604.1,2603.4,3.84111]
[1723254943092,3.84028,2604.0,2603.4,3.84111]
[1723254943769,3.83968,2604.4,2603.8,3.84053]
[1723254943928,3.83981,2604.3,2603.6,3.84072]
[1723254944127,0.87495407,2604.4,2603.8,3.84052]
[1723254944479,4.2859037,2604.5,2603.8,3.84052]
[1723254944968,3.83958,2604.5,2603.8,3.84043]
[1723254945169,7.6792,2604.5,2603.8,3.84041]
[1723254945830,3.83958,2604.5,2603.8,7.68085]
[1723254946055,3.83958,2604.5,2603.8,8.448935]
[1723254946249,3.83958,2604.5,2603.9,3.84031]
[1723254946465,3.83958,2604.5,2603.9,3.84038]
[1723254949484,6.15668,2604.7,2604.1,3.84007]
[1723254949828,6.15668,2604.7,2603.8,0.768085]
[1723254949829,2.3174,2604.7,2604.2,7.67976]
[1723254949977,2.3174,2604.7,2604.2,3.83985]
[1723254950780,2.3174,2604.7,2604.2,7.6797]
[1723254950985,2.3174,2604.7,2604.3,3.83977]
[1723254951623,9.99484,2605.1,2604.4,3.83956]
[1723254951826,9.99484,2605.1,2604.5,3.8394]
[1723254951827,6.15609,2605.1,2604.5,3.8394]
[1723254952033,2.3174,2605.1,2604.6,3.83935]
[1723254952186,2.3174,2605.1,2604.6,4.223285]
[1723254952392,2.3174,2605.1,2604.6,8.062555]
[1723254952890,2.3174,2605.1,2604.6,3.83927]
[1723254953603,2.3174,2605.1,2604.6,3.83925]
[1723254954302,6.15606,2605.1,2604.6,3.83925]
[1723254956865,2.3174,2605.1,2604.7,3.83919]
[1723254957031,2.3174,2605.1,2604.6,3.83925]
[1723254957261,2.3174,2605.1,2604.6,7.67851]
[1723254957428,2.3174,2605.1,2604.6,4.607101]
[1723254957603,7.82612,2605.5,2604.6,3.83927]
[1723254957604,2.4038,2605.5,2604.6,3.83927]
[1723254957804,2.4038,2605.5,2605.0,3.83863]
[1723254958029,2.4038,2605.5,2604.6,3.83927]
[1723254958030,2.4038,2605.8,2605.2,3.83834]
[1723254958343,0.624132,2605.8,2605.2,3.83834]
[1723254958546,3.83752,2605.9,2605.2,3.83834]
[1723254958905,6.241,2606.1,2604.8,6.16102]
[1723254958906,3.8372,2606.1,2605.5,3.83801]
[1723254959147,3.8372,2606.1,2605.5,7.67595]
[1723254959362,0.38372,2606.0,2605.5,3.83794]
[1723254959704,3.83693,2606.3,2605.7,7.67533]
[1723254960005,3.83693,2606.3,2605.7,3.83761]
[1723254960204,3.83657,2606.5,2605.9,7.67477]
[1723254960842,3.83657,2606.5,2606.0,3.83728]
[1723254961042,4.84424,2606.5,2606.0,3.83728]
[1723254961242,1.00767,2606.5,2606.1,3.83714]
[1723254961550,2.4038,2606.7,2605.7,3.83764]
[1723254961721,3.83747,2605.9,2605.5,7.49]
[1723254961918,3.83747,2605.9,2605.2,2.3859]
[1723254961919,3.83778,2605.7,2605.2,6.22437]
[1723254962135,3.83778,2605.7,2605.2,3.83847]
[1723254962350,7.67501,2605.9,2605.3,3.83832]
[1723254962556,3.83747,2605.9,2605.3,3.83832]
[1723254963107,2.337,2606.0,2605.5,3.83803]
[1723254963659,2.337,2606.0,2605.0,3.83868]
[1723254963660,3.83798,2605.6,2605.0,3.83868]
[1723254964113,3.83804,2605.5,2604.9,6.22471]
[1723254964713,3.83804,2605.5,2604.9,10.06353]
[1723254964927,4.454943,2605.9,2605.1,3.8386]
[1723254965125,4.454943,2605.9,2605.3,3.83824]
[1723254965126,3.83752,2605.9,2605.3,3.83824]
[1723254965348,3.83752,2605.9,2605.3,7.67648]
[1723254965521,3.83752,2605.9,2605.4,3.83818]
[1723254965925,2.337,2606.0,2605.4,3.83808]
[1723254966127,0.617422,2606.0,2605.4,3.83808]
[1723254966350,3.8371,2606.2,2605.5,3.83791]
[1723254966523,3.83718,2606.1,2605.5,3.83791]
[1723254966730,3.83718,2606.1,2605.6,3.83787]
[1723254967439,3.83718,2606.1,2605.5,0.622394]
[1723254968552,3.8373,2606.0,2605.5,0.622394]
[1723254969059,3.83759,2605.8,2605.2,3.83835]
[1723254969349,3.83759,2605.8,2604.9,1.006353]
[1723254969350,3.83814,2605.5,2604.9,4.845263]
[1723254969552,7.67628,2605.5,2604.9,3.83891]
[1723254969914,3.83819,2605.4,2604.9,3.83891]
[1723254970539,6.17481,2605.7,2604.7,2.3859]
[1723254970713,6.17481,2605.7,2605.1,3.8385]
[1723254971151,10.01265,2605.7,2605.1,3.8385]
[1723254971526,6.17481,2605.7,2605.1,3.8385]
[1723254971727,3.83806,2605.5,2604.9,7.67764]
[1723254971973,3.83806,2605.5,2604.9,3.83881]
[1723254972378,6.792291,2605.7,2605.1,3.83852]
[1723254972531,6.792291,2605.7,2605.1,7.67706]
[1723254972732,6.792291,2605.7,2604.9,7.67765]
[1723254972937,3.83803,2605.5,2604.9,7.67765]
[1723254973173,3.83803,2605.5,2605.0,3.83874]
[1723254973778,3.83803,2605.5,2604.9,7.67763]
[1723254973945,3.83803,2605.5,2604.9,3.83881]
[1723254974350,3.83803,2605.5,2604.9,7.67764]
[1723254974773,3.83803,2605.5,2604.9,3.83881]
[1723254974982,3.83862,2605.1,2604.3,20.567962]
[1723254975174,3.83862,2605.1,2604.6,3.83933]
[1723254975381,7.67685,2605.3,2604.7,3.83921]
[1723254975593,3.83852,2605.2,2604.7,3.83921]
[1723254976305,3.83863,2605.1,2604.5,7.6788]
[1723254976470,3.83863,2605.1,2604.5,9.2724762]
[1723254976668,3.83863,2605.1,2604.5,5.4330562]
[1723254978208,2.337,2605.4,2604.9,3.83888]
[1723254978516,2.337,2605.4,2605.0,0.383888]
[1723254978675,2.337,2605.4,2604.9,3.83888]
[1723254978879,2.337,2605.4,2604.9,3.83881]